bitfinex/quotes_BTCUSD_20251009
["timestamp","ask_amount","ask_price","bid_price","bid_amount"]
[1760022339017,0.01518926,121580.0,121570.0,0.79937124]
[1760022339181,0.02278126,121580.0,121570.0,0.79937124]
[1760022340427,0.02278126,121580.0,121570.0,1.03985124]
[1760022340643,0.02278126,121580.0,121570.0,0.61358119]
[1760022340858,0.02278126,121580.0,121570.0,1.03985124]
[1760022341237,0.02278126,121580.0,121570.0,0.79937124]
[1760022341449,0.187282,121580.0,121570.0,1.03981124]
[1760022341658,0.187282,121580.0,121570.0,0.79937124]
[1760022341829,0.187282,121580.0,121570.0,1.03981124]
[1760022342221,0.02278126,121580.0,121570.0,1.03981124]
[1760022342428,0.187282,121580.0,121570.0,1.03981124]
[1760022342623,0.02278126,121580.0,121570.0,1.03981124]
[1760022343298,0.02278126,121580.0,121570.0,0.79937124]
[1760022343775,0.02278126,121580.0,121570.0,0.61350119]
[1760022343979,0.02278126,121580.0,121570.0,1.03977124]
[1760022344529,0.02278126,121580.0,121570.0,0.61350119]
[1760022344731,0.02278126,121580.0,121570.0,1.03977124]
[1760022345728,0.02278126,121580.0,121570.0,0.79937124]
[1760022345925,0.02278126,121580.0,121570.0,1.03973124]
[1760022346953,0.187282,121580.0,121570.0,1.03973124]
[1760022347647,0.02278126,121580.0,121570.0,1.03973124]
[1760022348127,0.02278126,121580.0,121570.0,0.79937124]
[1760022348337,0.02278126,121580.0,121570.0,1.03973124]
[1760022348535,0.02281475,121580.0,121570.0,1.03973124]
[1760022349176,0.02281475,121580.0,121570.0,1.1228133]
[1760022349516,0.74479229,121610.0,121590.0,0.164485]
[1760022349517,0.72456346,121610.0,121590.0,0.164485]
[1760022349722,0.72456346,121610.0,121600.0,0.03826]
[1760022349919,0.72456346,121610.0,121600.0,0.09019]
[1760022350854,0.72556346,121610.0,121600.0,0.09019]
[1760022351216,0.75138573,121610.0,121600.0,0.09019]
[1760022351441,0.76186573,121610.0,121600.0,0.09019]
[1760022351863,0.76386573,121610.0,121600.0,0.09019]
[1760022352258,0.76286573,121610.0,121600.0,0.09019]
[1760022352458,0.39604346,121610.0,121600.0,0.59502005]
[1760022352851,0.15576346,121610.0,121600.0,0.59502005]
[1760022353059,0.39504346,121610.0,121600.0,0.16875]
[1760022353835,0.39504346,121610.0,121600.0,0.33322368]
[1760022354037,0.45367242,121610.0,121600.0,0.4687001]
[1760022354862,0.16447368,121600.0,121590.0,0.30362431]
[1760022355082,0.16447368,121600.0,121590.0,0.49382441]
[1760022355274,0.16447368,121600.0,121590.0,0.73406441]
[1760022355476,0.16447368,121600.0,121590.0,0.73560431]
[1760022355679,0.18713382,121600.0,121590.0,0.73560431]
[1760022355859,0.18713382,121600.0,121590.0,0.90009152]
[1760022356059,0.21339242,121610.0,121590.0,0.90009152]
[1760022356060,0.16446015,121610.0,121600.0,0.02499999]
[1760022356338,0.16446015,121610.0,121600.0,1.19832387]
[1760022357349,0.16446015,121610.0,121600.0,0.95812387]
[1760022357705,0.16446015,121610.0,121600.0,0.19374999]
[1760022357904,0.16446015,121610.0,121600.0,1.19832387]
[1760022358692,0.16446015,121610.0,121600.0,1.03385019]
[1760022358983,0.16446015,121610.0,121600.0,1.19832387]
[1760022359137,0.16446015,121610.0,121600.0,0.95812387]
[1760022359363,0.16446015,121610.0,121600.0,1.19828387]
[1760022359578,0.16446015,121610.0,121600.0,0.79365019]
[1760022359957,0.16446015,121610.0,121600.0,0.09019]
[1760022359958,0.52214151,121610.0,121600.0,0.09019]
[1760022360169,0.16447368,121600.0,121590.0,0.06338431]
[1760022360681,0.16447368,121600.0,121590.0,0.11531431]
[1760022361115,0.16447368,121600.0,121590.0,0.19387431]
[1760022361330,0.52710629,121600.0,121590.0,0.00012432]
[1760022361552,0.52710629,121600.0,121590.0,0.00112432]
[1760022361768,0.79006587,121600.0,121590.0,0.00112432]
[1760022361986,0.79006587,121600.0,121590.0,0.00266422]
[1760022362172,0.49011577,121600.0,121590.0,0.00266422]
[1760022362634,0.49011577,121600.0,121590.0,0.00366422]
[1760022363315,0.48250258,121600.0,121590.0,0.00366422]
[1760022363711,1.09177617,121600.0,121590.0,0.00366422]
[1760022363939,1.33947118,121600.0,121590.0,0.00366422]
[1760022364295,1.33185617,121600.0,121590.0,0.00366422]
[1760022364748,1.33185617,121600.0,121590.0,0.00266422]
[1760022365548,1.33185617,121600.0,121590.0,0.00166422]
[1760022366365,1.31662978,121600.0,121590.0,0.00166422]
[1760022366526,1.33185838,121600.0,121590.0,0.00166422]
[1760022366727,1.31662978,121600.0,121590.0,0.00166422]
[1760022367128,1.33185826,121600.0,121590.0,0.00166422]
[1760022367543,0.16448721,121590.0,121580.0,1.0]
[1760022367772,1.0938776,121590.0,121580.0,0.59801064]
[1760022367984,1.3419176,121590.0,121580.0,0.59801064]
[1760022368186,1.35714456,121590.0,121580.0,0.59801064]
[1760022368394,1.14725108,121590.0,121580.0,5.046e-05]
[1760022368604,1.39490146,121590.0,121580.0,1e-08]
[1760022368810,2.05370046,121590.0,121580.0,1e-08]
[1760022369040,1.15486146,121590.0,121580.0,1e-08]
[1760022369242,1.82262146,121590.0,121580.0,1e-08]
[1760022369571,1.82362146,121590.0,121580.0,1e-08]
[1760022370383,1.58358146,121590.0,121580.0,1e-08]
[1760022370581,1.82362146,121590.0,121580.0,1e-08]
[1760022370783,3.56305345,121590.0,121580.0,1e-08]
[1760022370986,3.34586745,121590.0,121580.0,1e-08]
[1760022371186,2.6824427,121590.0,121580.0,1e-08]
[1760022371396,3.3502427,121590.0,121580.0,1e-08]
[1760022372871,3.37495723,121590.0,121580.0,1e-08]
[1760022373275,2.9486857,121590.0,121580.0,1e-08]
[1760022373691,2.7086857,121590.0,121580.0,1e-08]
[1760022373905,2.96996063,121590.0,121580.0,1e-08]
[1760022374092,0.50454134,121550.0,121540.0,1e-08]
[1760022374278,0.50454134,121550.0,121540.0,0.00050487]
[1760022374279,0.6655855,121550.0,121540.0,0.00050487]
[1760022374680,0.9911455,121550.0,121540.0,0.00255925]
[1760022375118,1.00952946,121550.0,121540.0,0.00255925]
[1760022375901,1.01052946,121550.0,121540.0,0.00255925]
[1760022376085,0.68396946,121550.0,121540.0,0.00255925]
[1760022376291,0.76952946,121550.0,121540.0,0.00255925]
[1760022376502,1.00952946,121550.0,121540.0,0.00255925]
[1760022376710,0.92396946,121550.0,121540.0,0.00255925]
[1760022376919,1.00952946,121550.0,121540.0,0.00255925]
[1760022377479,1.00948946,121550.0,121540.0,0.00255925]
[1760022377943,0.76952946,121550.0,121540.0,0.00255925]
[1760022378134,1.00952946,121550.0,121540.0,0.00255925]
[1760022379167,0.76952946,121550.0,121540.0,0.00255925]
[1760022379433,1.00948946,121550.0,121540.0,0.00255925]
[1760022379886,0.68396946,121550.0,121540.0,0.00255925]
[1760022380095,0.8328074,121550.0,121540.0,0.17141925]
[1760022380297,0.5928474,121550.0,121540.0,0.17141925]
[1760022380518,0.4928074,121550.0,121540.0,0.17141925]
[1760022380726,0.47442344,121550.0,121540.0,0.17141925]
[1760022380929,0.49052741,121550.0,121540.0,0.17141925]
[1760022381135,0.49052741,121550.0,121540.0,0.09482925]
[1760022381548,0.25056741,121550.0,121540.0,0.00355925]
[1760022381772,0.49048741,121550.0,121540.0,0.00355925]
[1760022382187,0.49048741,121550.0,121540.0,0.00455925]
[1760022382711,0.25056741,121550.0,121540.0,0.00455925]
[1760022382954,0.49048741,121550.0,121540.0,0.00455925]
[1760022384078,1.099961,121550.0,121540.0,0.00455925]
[1760022384279,1.14532668,121550.0,121540.0,1e-08]
[1760022384507,1.38520668,121550.0,121540.0,1e-08]
[1760022384912,0.50456841,121530.0,121520.0,0.0004]
[1760022385261,0.98004401,121530.0,121520.0,0.00055161]
[1760022386471,0.89362578,121530.0,121520.0,0.00055161]
[1760022386937,0.50127224,121530.0,121520.0,0.05367161]
[1760022387100,0.74115224,121530.0,121520.0,0.05367161]
[1760022387280,0.74115224,121530.0,121520.0,0.00055161]
[1760022389055,0.74111224,121530.0,121520.0,0.00055161]
[1760022389275,0.75634948,121530.0,121520.0,0.00055161]
[1760022389478,0.83634674,121530.0,121520.0,0.00055161]
[1760022389874,0.59650674,121530.0,121520.0,0.00055161]
[1760022390155,0.16456697,121540.0,121520.0,0.59568314]
[1760022390382,0.16456697,121540.0,121530.0,0.54201153]
[1760022390383,0.17981109,121540.0,121530.0,0.54201153]
[1760022390626,0.17981109,121540.0,121530.0,0.59513153]
[1760022390856,0.25879447,121550.0,121530.0,0.78469974]
[1760022391096,0.16455487,121540.0,121530.0,0.62013152]
[1760022391305,0.4482547,121540.0,121530.0,0.62013152]
[1760022391534,0.2084147,121540.0,121530.0,0.62013152]
[1760022391990,0.4482547,121540.0,121530.0,0.19385999]
[1760022392393,0.4482547,121540.0,121530.0,0.19485999]
[1760022392798,0.4482547,121540.0,121530.0,0.62113152]
[1760022393030,0.4482547,121540.0,121530.0,0.62213152]
[1760022393481,0.2426905,121550.0,121530.0,0.78669993]
[1760022393712,0.40435487,121540.0,121530.0,0.11826999]
[1760022393927,0.2398,121540.0,121530.0,0.29582677]
[1760022394152,0.40435487,121540.0,121530.0,0.2828384]
[1760022394442,0.40435487,121540.0,121530.0,0.3604284]
[1760022394670,0.22925941,121540.0,121530.0,0.3604284]
[1760022394875,0.46905941,121540.0,121530.0,0.3594284]
[1760022395080,0.30450454,121540.0,121530.0,0.3594284]
[1760022395279,0.46905941,121540.0,121530.0,0.3594284]
[1760022395487,0.06470454,121540.0,121530.0,0.3594284]
[1760022395727,0.00137289,121560.0,121540.0,0.18954474]
[1760022395971,0.40430134,121550.0,121540.0,0.82516854]
[1760022396197,0.18881239,121560.0,121550.0,0.33340134]
[1760022396198,0.40566069,121560.0,121550.0,0.33340134]
[1760022396423,0.42857425,121560.0,121550.0,0.35840133]
[1760022396657,0.42857425,121560.0,121550.0,0.19385999]
[1760022396658,0.48950799,121560.0,121550.0,0.19385999]
[1760022396904,0.48950799,121560.0,121550.0,0.11626999]
[1760022398374,0.48946799,121560.0,121550.0,0.11626999]
[1760022398580,0.24974799,121560.0,121550.0,0.11726999]
[1760022398789,0.48946799,121560.0,121550.0,0.11726999]
[1760022399207,0.48946799,121560.0,121550.0,0.001]
[1760022399417,0.48946799,121560.0,121550.0,0.002]
[1760022400121,0.48946924,121560.0,121550.0,0.002]
[1760022400647,0.48946924,121560.0,121550.0,0.05748]
[1760022400900,0.48946924,121560.0,121550.0,0.09758]
[1760022401768,0.24974924,121560.0,121550.0,0.09758]
[1760022401971,0.9125513,121560.0,121550.0,0.002]
[1760022402796,0.16454134,121550.0,121540.0,0.0401]
[1760022402998,0.26745295,121550.0,121540.0,0.09558]
[1760022403783,0.16455487,121540.0,121530.0,0.03866373]
[1760022403981,0.18746968,121540.0,121530.0,0.00051373]
[1760022404184,0.51023174,121540.0,121530.0,0.00051373]
[1760022404822,0.85023174,121540.0,121530.0,0.00051373]
[1760022405133,0.92610704,121540.0,121530.0,0.00051373]
[1760022405402,1.28394084,121540.0,121530.0,0.00051373]
[1760022405623,1.52354084,121540.0,121530.0,0.00051373]
[1760022406496,1.61110084,121540.0,121530.0,0.00051373]
[1760022406698,1.61107239,121540.0,121530.0,0.00051373]
[1760022407100,1.37147239,121540.0,121530.0,0.00051373]
[1760022407273,1.61107239,121540.0,121530.0,0.00051373]
[1760022407826,1.60907239,121540.0,121530.0,0.00051373]
[1760022408255,1.61107239,121540.0,121530.0,0.00051373]
[1760022408464,1.28591239,121540.0,121530.0,0.00051373]
[1760022408674,1.61107239,121540.0,121530.0,0.00051373]
[1760022409119,1.28591239,121540.0,121530.0,0.00051373]
[1760022409528,1.61107239,121540.0,121530.0,0.00051373]
[1760022409884,1.37147239,121540.0,121530.0,0.00051373]
[1760022410288,1.61103239,121540.0,121530.0,0.00051373]
[1760022410490,1.37147239,121540.0,121530.0,0.00051373]
[1760022410704,0.50456841,121530.0,121520.0,0.00055161]
[1760022410912,1.52760743,121530.0,121520.0,0.00055161]
[1760022411315,1.52759257,121530.0,121520.0,0.00055161]
[1760022411720,1.28803257,121530.0,121520.0,0.00055161]
[1760022411957,1.01667877,121530.0,121520.0,0.00055161]
[1760022412338,1.01767877,121530.0,121520.0,0.00055161]
[1760022412745,0.69255877,121530.0,121520.0,0.00055161]
[1760022412939,1.01771877,121530.0,121520.0,0.00055161]
[1760022413796,0.93211877,121530.0,121520.0,0.00055161]
[1760022414029,0.0248715,121530.0,121520.0,1.02111943]
[1760022414230,0.04079709,121570.0,121520.0,1.02111943]
[1760022414231,0.28203649,121570.0,121550.0,0.16454114]
[1760022414450,0.1916478,121560.0,121550.0,0.14915999]
[1760022414617,0.19926766,121560.0,121550.0,0.11736999]
[1760022414822,0.24502851,121560.0,121550.0,0.28191133]
[1760022415147,0.24502851,121560.0,121550.0,0.36493133]
[1760022415348,0.54302851,121560.0,121550.0,0.36493133]
[1760022416108,0.21790851,121560.0,121550.0,0.36493133]
[1760022416307,0.32512,121560.0,121550.0,0.36493133]
[1760022416503,0.18915081,121580.0,121560.0,0.02499999]
[1760022416731,0.48963427,121570.0,121560.0,0.31658779]
[1760022416907,0.49725465,121570.0,121560.0,0.36781779]
[1760022417159,0.49965462,121570.0,121560.0,0.36781779]
[1760022417305,0.17453462,121570.0,121560.0,0.36781779]
[1760022417510,0.53598316,121570.0,121560.0,0.36781779]
[1760022417733,0.21090316,121570.0,121560.0,0.3679694]
[1760022418058,0.53598316,121570.0,121560.0,0.2034416]
[1760022418282,0.53594316,121570.0,121560.0,0.3679694]
[1760022418494,0.52832278,121570.0,121560.0,0.3679694]
[1760022418906,0.00239997,121570.0,121560.0,0.9654432]
[1760022419121,0.49195424,121570.0,121560.0,0.9654432]
[1760022419333,0.24187997,121570.0,121560.0,0.9654432]
[1760022419613,0.00239997,121570.0,121560.0,0.9654432]
[1760022419828,0.24187997,121570.0,121560.0,0.9654432]
[1760022420413,0.00239997,121570.0,121560.0,0.9654432]
[1760022420827,0.16691424,121570.0,121560.0,0.3679694]
[1760022421017,0.20861183,121570.0,121560.0,0.3679694]
[1760022421383,0.44805183,121570.0,121560.0,0.3679694]
[1760022421579,0.44805183,121570.0,121560.0,0.3689694]
[1760022421894,0.28353756,121570.0,121560.0,0.3689694]
[1760022422094,0.28353756,121570.0,121560.0,0.3699694]
[1760022422324,0.44805183,121570.0,121560.0,0.3699694]
[1760022422526,0.53361183,121570.0,121560.0,0.3699694]
[1760022422730,0.20861183,121570.0,121560.0,0.3699694]
[1760022422931,0.53357183,121570.0,121560.0,0.3699694]
[1760022423130,0.53357183,121570.0,121560.0,0.1224216]
[1760022423533,0.00239997,121570.0,121560.0,0.384937]
[1760022423735,0.16763997,121570.0,121560.0,0.9674432]
[1760022424150,0.00239997,121570.0,121560.0,0.9664432]
[1760022424364,0.24179997,121570.0,121560.0,0.9664432]
[1760022424555,0.00239997,121570.0,121560.0,0.9664432]
[1760022425317,0.40631424,121570.0,121560.0,0.3689694]
[1760022425491,0.47195178,121570.0,121560.0,0.3689694]
[1760022425647,0.06803751,121570.0,121560.0,0.3699694]
[1760022425879,0.00239997,121570.0,121560.0,0.3699694]
[1760022426063,0.24175997,121570.0,121560.0,0.3699694]
[1760022427088,0.40627424,121570.0,121560.0,0.9674432]
[1760022427797,0.16691424,121570.0,121560.0,0.9674432]
[1760022428011,0.24175997,121570.0,121560.0,0.9674432]
[1760022429053,0.44525338,121570.0,121560.0,0.3699694]
[1760022429263,0.44521338,121570.0,121560.0,0.3699694]
[1760022430339,0.28069911,121570.0,121560.0,0.3699694]
[1760022430549,0.44521338,121570.0,121560.0,0.3699694]
[1760022430748,0.28069911,121570.0,121560.0,0.3699694]
[1760022430898,0.44521338,121570.0,121560.0,0.3699694]
[1760022431098,0.44521338,121570.0,121560.0,0.1224216]
[1760022431296,0.20589338,121570.0,121560.0,0.00505161]
[1760022431510,0.44517338,121570.0,121560.0,0.00505161]
[1760022431919,1.22648924,121570.0,121560.0,0.00305161]
[1760022432132,1.46576924,121570.0,121560.0,0.00305161]
[1760022432345,1.46576924,121570.0,121560.0,0.00505161]
[1760022432573,0.87591151,121570.0,121560.0,0.00405161]
[1760022432780,0.87691151,121570.0,121560.0,0.00405161]
[1760022432990,1.47438531,121570.0,121560.0,0.00405161]
[1760022433636,0.16456841,121530.0,121520.0,0.10638881]
[1760022433839,0.28304074,121530.0,121520.0,0.18171205]
[1760022434353,0.52232074,121530.0,121520.0,0.18171205]
[1760022434556,0.19748074,121530.0,121520.0,0.18171205]
[1760022434759,0.52232074,121530.0,121520.0,0.18171205]
[1760022434973,0.52232074,121530.0,121520.0,0.18271205]
[1760022435180,0.52232074,121530.0,121520.0,0.18371205]
[1760022435477,0.23928,121530.0,121520.0,0.42421401]
[1760022435826,0.48940841,121530.0,121520.0,0.19343702]
[1760022436332,0.48936841,121530.0,121520.0,0.19243702]
[1760022436764,0.48936841,121530.0,121520.0,0.35801898]
[1760022436972,0.48936841,121530.0,121520.0,0.19243702]
[1760022437199,0.55476074,121530.0,121520.0,0.19243702]
[1760022437429,0.55476074,121530.0,121520.0,0.35801898]
[1760022437887,0.46924074,121530.0,121520.0,0.35801898]
[1760022438099,0.55476074,121530.0,121520.0,0.35801898]
[1760022438586,0.55476074,121530.0,121520.0,0.19343702]
[1760022438794,0.55476074,121530.0,121520.0,0.11751702]
[1760022439011,0.31552074,121530.0,121520.0,0.19343702]
[1760022439246,0.31552074,121530.0,121520.0,0.11751702]
[1760022439247,0.55476074,121530.0,121520.0,0.11751702]
[1760022439679,0.31552074,121530.0,121520.0,0.00299703]
[1760022439895,0.55476074,121530.0,121520.0,0.00299703]
[1760022440136,0.22996074,121530.0,121520.0,0.00299703]
[1760022440325,0.55476074,121530.0,121520.0,0.09251703]
[1760022440541,0.55476074,121530.0,121520.0,0.09151703]
[1760022440708,0.55576074,121530.0,121520.0,0.04127703]
[1760022440910,0.23096074,121530.0,121520.0,0.00199703]
[1760022441266,0.22996074,121530.0,121520.0,0.09051703]
[1760022441470,0.55476074,121530.0,121520.0,0.16643703]
[1760022441674,1.3361166,121530.0,121520.0,0.00099703]
[1760022441881,0.9778828,121530.0,121520.0,0.00099703]
[1760022442089,0.9788828,121530.0,121520.0,0.00099703]
[1760022442379,0.9778828,121530.0,121520.0,0.00099703]
[1760022442596,0.7386428,121530.0,121520.0,0.00099703]
[1760022442839,1.3361166,121530.0,121520.0,0.00099703]
[1760022443051,1.5753566,121530.0,121520.0,0.00099703]
[1760022443911,1.5763566,121530.0,121520.0,0.00099703]
[1760022444127,1.3371166,121530.0,121520.0,0.00099703]
[1760022444345,0.7620693,121510.0,121500.0,0.0004]
[1760022444556,1.16438816,121510.0,121500.0,0.0004]
[1760022444980,0.92518816,121510.0,121500.0,0.00142779]
[1760022445159,1.16438816,121510.0,121500.0,0.00142779]
[1760022445336,0.65247436,121510.0,121500.0,0.00142779]
[1760022445538,0.65347436,121510.0,121500.0,0.00142779]
[1760022446151,0.65447436,121510.0,121500.0,0.00142779]
[1760022446916,0.65451436,121510.0,121500.0,0.00142779]
[1760022448313,1.01278816,121510.0,121500.0,0.00142779]
[1760022448523,1.25198816,121510.0,121500.0,0.00142779]
[1760022449027,0.92718816,121510.0,121500.0,0.00142779]
[1760022449439,1.25198816,121510.0,121500.0,0.00142779]
[1760022450003,0.24971756,121510.0,121500.0,0.05166779]
[1760022450211,0.57451756,121510.0,121500.0,0.00142779]
[1760022450906,0.96294326,121510.0,121500.0,0.00142779]
[1760022451104,1.20214326,121510.0,121500.0,0.00142779]
[1760022451318,0.96294326,121510.0,121500.0,0.00142779]
[1760022451564,1.28214006,121510.0,121500.0,0.00142779]
[1760022452125,1.04294006,121510.0,121500.0,0.00142779]
[1760022452369,1.28214006,121510.0,121500.0,0.00142779]
[1760022452539,0.35986626,121510.0,121500.0,0.00142779]
[1760022452741,1.28214006,121510.0,121500.0,0.00142779]
[1760022453564,0.68466626,121510.0,121500.0,0.00142779]
[1760022453970,1.28214006,121510.0,121500.0,0.00142779]
[1760022454171,0.95734006,121510.0,121500.0,0.00142779]
[1760022454398,0.68466626,121510.0,121500.0,0.00142779]
[1760022454601,0.35986626,121510.0,121500.0,0.00142779]
[1760022454936,0.68466626,121510.0,121500.0,0.00142779]
[1760022455103,0.35986626,121510.0,121500.0,0.00142779]
[1760022455319,0.46068842,121510.0,121500.0,0.00142779]
[1760022455528,0.68466626,121510.0,121500.0,0.00142779]
[1760022456109,0.80206419,121510.0,121500.0,0.00142779]
[1760022456316,1.11159731,121510.0,121500.0,0.00142779]
[1760022457270,1.12683108,121510.0,121500.0,0.00142779]
[1760022457772,0.5046497,121470.0,121460.0,0.0004]
[1760022457990,0.6702465,121470.0,121460.0,0.00048328]
[1760022458207,0.9094065,121470.0,121460.0,0.05072328]
[1760022458417,0.9094065,121470.0,121460.0,0.16592328]
[1760022458418,0.7438097,121470.0,121460.0,0.16592328]
[1760022458667,0.4038097,121470.0,121460.0,0.78255758]
[1760022458932,0.4038097,121470.0,121460.0,0.61789432]
[1760022459217,0.16463615,121480.0,121460.0,0.35558653]
[1760022459442,0.4038097,121470.0,121460.0,0.70763758]
[1760022459649,0.4038097,121470.0,121460.0,0.70863758]
[1760022459858,0.1646497,121470.0,121460.0,0.70863758]
[1760022460068,0.1646497,121470.0,121460.0,0.78259758]
[1760022460219,0.4038097,121470.0,121460.0,0.61793432]
[1760022460413,0.4038097,121470.0,121460.0,0.35662653]
[1760022460414,0.17990029,121470.0,121460.0,0.35662653]
[1760022460618,0.41906029,121470.0,121460.0,0.35662653]
[1760022460827,0.17990029,121470.0,121460.0,0.35562653]
[1760022461027,0.16463615,121480.0,121470.0,0.02499999]
[1760022461228,0.4190583,121480.0,121470.0,0.55854601]
[1760022461452,0.01526215,121480.0,121470.0,0.78169074]
[1760022461655,0.01526215,121490.0,121480.0,0.18963614]
[1760022461862,0.01526215,121490.0,121480.0,0.86479925]
[1760022462087,0.1646226,121490.0,121480.0,0.86479925]
[1760022462362,0.19579607,121490.0,121480.0,0.27319205]
[1760022462611,0.19579607,121490.0,121480.0,0.19006999]
[1760022462842,0.44258992,121490.0,121480.0,0.19006999]
[1760022463170,0.44259158,121490.0,121480.0,0.19006999]
[1760022463597,0.44259158,121490.0,121480.0,0.35470614]
[1760022463796,0.44255158,121490.0,121480.0,0.78167719]
[1760022464034,0.44255158,121490.0,121480.0,0.78270523]
[1760022464289,0.44255158,121490.0,121480.0,0.61806908]
[1760022464491,0.42664026,121490.0,121480.0,0.78270523]
[1760022464918,0.18752026,121490.0,121480.0,0.78270523]
[1760022465892,0.02289766,121490.0,121480.0,0.86582729]
[1760022466093,0.01526215,121490.0,121480.0,0.86582729]
[1760022466381,0.17988475,121490.0,121480.0,0.86582729]
[1760022466502,0.17988475,121490.0,121480.0,1.10494729]
[1760022466703,0.01527709,121490.0,121480.0,1.10494729]
[1760022467318,0.01527709,121490.0,121480.0,1.10590729]
[1760022467558,0.01527709,121490.0,121480.0,1.10690729]
[1760022468033,0.01527709,121490.0,121480.0,0.86782729]
[1760022468208,0.17989969,121490.0,121480.0,0.86782729]
[1760022468409,0.18754393,121490.0,121480.0,1.10690729]
[1760022468733,0.02292133,121490.0,121480.0,1.10690729]
[1760022470268,0.02292133,121490.0,121480.0,0.86782729]
[1760022470494,0.01527709,121490.0,121480.0,0.67993624]
[1760022470694,0.01527709,121490.0,121480.0,1.10690729]
[1760022471095,0.02293266,121490.0,121480.0,1.10690729]
[1760022472181,0.02293266,121490.0,121480.0,0.86782729]
[1760022472409,0.02293266,121490.0,121480.0,1.10686729]
[1760022473392,0.02293266,121490.0,121480.0,0.86782729]
[1760022473593,0.02293266,121490.0,121480.0,1.10682729]
[1760022473842,0.02293266,121490.0,121480.0,0.92818994]
[1760022474314,0.00765557,121490.0,121480.0,1.16718994]
[1760022474912,0.17418456,121520.0,121500.0,0.16459721]
[1760022475115,0.19716384,121520.0,121510.0,0.61422016]
[1760022475332,0.19716384,121520.0,121510.0,0.60189105]
[1760022475996,0.19716384,121520.0,121510.0,0.76648655]
[1760022476319,0.25952823,121520.0,121510.0,0.76648655]
[1760022477022,0.19716384,121520.0,121510.0,0.60189105]
[1760022477340,0.19716384,121520.0,121510.0,0.76648655]
[1760022477538,0.19716384,121520.0,121510.0,0.60189105]
[1760022477915,0.19716384,121520.0,121510.0,0.79148654]
[1760022478698,0.19716384,121520.0,121510.0,0.62689104]
[1760022478898,0.25806014,121520.0,121510.0,0.62689104]
[1760022479117,0.25806014,121520.0,121510.0,0.19991999]
[1760022479611,0.25806014,121520.0,121510.0,0.11976999]
[1760022479821,1.00707325,121520.0,121510.0,0.001]
[1760022480015,0.5801022,121520.0,121510.0,0.002]
[1760022480649,0.5801022,121520.0,121510.0,0.001]
[1760022480999,0.16460905,121500.0,121490.0,0.14621396]
[1760022481187,0.22051,121500.0,121490.0,0.20051724]
[1760022482006,0.18758833,121500.0,121490.0,0.79211089]
[1760022482306,0.18758833,121500.0,121490.0,0.62748829]
[1760022482955,0.18758833,121500.0,121490.0,0.62848829]
[1760022483194,0.18758833,121500.0,121490.0,0.62948829]
[1760022483752,0.18758833,121500.0,121490.0,0.20251724]
[1760022483957,0.24669593,121500.0,121490.0,0.20251724]
[1760022484375,0.24669593,121500.0,121490.0,0.79411089]
[1760022484376,0.07442712,121500.0,121490.0,0.79411089]
[1760022484577,0.01531952,121500.0,121490.0,0.79411089]
[1760022485220,0.42645036,121510.0,121490.0,0.36713984]
[1760022485470,0.42645036,121510.0,121500.0,0.56077807]
[1760022485653,0.18757036,121510.0,121500.0,0.17492]
[1760022485870,0.46871548,121510.0,121500.0,0.17492]
[1760022487181,0.46106087,121510.0,121500.0,0.17492]
[1760022487343,0.22218087,121510.0,121500.0,0.17492]
[1760022487556,0.46102087,121510.0,121500.0,0.17492]
[1760022487953,0.22218087,121510.0,121500.0,0.60189105]
[1760022488171,0.41875575,121510.0,121500.0,0.62689104]
[1760022489147,0.40343623,121510.0,121500.0,0.79150009]
[1760022489394,0.40343623,121510.0,121500.0,0.79250009]
[1760022489794,0.16459623,121510.0,121500.0,0.79250009]
[1760022490005,0.16459623,121510.0,121500.0,0.79350009]
[1760022490216,0.22844794,121510.0,121500.0,0.62889104]
[1760022490616,0.22844794,121510.0,121500.0,0.79350009]
[1760022490822,0.22844794,121510.0,121500.0,0.62889104]
[1760022491705,0.22844794,121510.0,121500.0,0.20191999]
[1760022491919,0.46724794,121510.0,121500.0,0.20191999]
[1760022492124,0.46724794,121510.0,121500.0,0.36652904]
[1760022492453,0.06385171,121510.0,121500.0,0.79350009]
[1760022492681,0.00137351,121520.0,121510.0,0.18959549]
[1760022492909,0.00137351,121520.0,121510.0,0.8602086]
[1760022493880,0.37819491,121540.0,121520.0,0.16458196]
[1760022494077,0.16237695,121540.0,121530.0,0.7385082]
[1760022494286,0.16237695,121540.0,121530.0,0.77705945]
[1760022494287,0.40335487,121540.0,121530.0,0.77705945]
[1760022494488,0.40331487,121540.0,121530.0,0.77705945]
[1760022494691,0.16455487,121540.0,121530.0,0.77705945]
[1760022494893,0.16455487,121540.0,121530.0,0.61249104]
[1760022495728,0.16455487,121540.0,121530.0,0.61349104]
[1760022497176,0.16455487,121540.0,121530.0,0.61449104]
[1760022497594,0.17283062,121560.0,121540.0,0.18955486]
[1760022497810,0.56969211,121560.0,121550.0,0.58609076]
[1760022498028,0.43467182,121560.0,121550.0,0.61249104]
[1760022498246,0.19595182,121560.0,121550.0,0.61249104]
[1760022498477,0.43467182,121560.0,121550.0,0.61249104]
[1760022498916,0.43567182,121560.0,121550.0,0.61249104]
[1760022499135,0.19695182,121560.0,121550.0,0.61249104]
[1760022499381,0.44883549,121560.0,121550.0,0.61249104]
[1760022499850,0.43667182,121560.0,121550.0,0.61249104]
[1760022500087,0.19795182,121560.0,121550.0,0.77703238]
[1760022500340,0.43868632,121560.0,121550.0,0.77703238]
[1760022500546,0.20000632,121560.0,121550.0,0.77703238]
[1760022500767,0.19900632,121560.0,121550.0,0.61249104]
[1760022501057,0.23083025,121560.0,121550.0,0.61249104]
[1760022501267,0.43668632,121560.0,121550.0,0.61249104]
[1760022501450,0.42137315,121560.0,121550.0,0.61249104]
[1760022501766,0.42137315,121560.0,121550.0,0.77703238]
[1760022502177,0.42137315,121560.0,121550.0,0.77803238]
[1760022502724,0.42137315,121560.0,121550.0,0.61449104]
[1760022502950,0.4799677,121560.0,121550.0,0.61449104]
[1760022503184,0.2412877,121560.0,121550.0,0.18751999]
[1760022503383,0.2412877,121560.0,121550.0,0.85313104]
[1760022503819,0.2412877,121560.0,121550.0,0.61449104]
[1760022504016,0.2412877,121560.0,121550.0,0.42615999]
[1760022504395,0.2412877,121560.0,121550.0,0.11487999]
[1760022504612,0.4799277,121560.0,121550.0,0.11487999]
[1760022504830,0.2412877,121560.0,121550.0,0.11487999]
[1760022505041,0.49518632,121560.0,121550.0,0.11487999]
[1760022505614,0.49518632,121560.0,121550.0,0.11387999]
[1760022505861,0.49518632,121560.0,121550.0,0.02699999]
[1760022506053,0.49518632,121560.0,121550.0,0.07670999]
[1760022506254,0.43659177,121560.0,121550.0,0.07770999]
[1760022506371,0.43659177,121560.0,121550.0,0.18651999]
[1760022506572,0.19799177,121560.0,121550.0,0.18651999]
[1760022506829,0.19798592,121560.0,121550.0,0.18751999]
[1760022507041,0.17503657,121560.0,121550.0,0.61449104]
[1760022507257,0.43658711,121560.0,121550.0,0.61449104]
[1760022507458,0.42893693,121560.0,121550.0,0.18651999]
[1760022507614,0.48901287,121560.0,121550.0,0.11387999]
[1760022507819,0.47371251,121560.0,121550.0,0.18751999]
[1760022508410,0.41359657,121560.0,121550.0,0.18751999]